fUST/lending_fUST_20240828
["ID","MTS","AMOUNT","RATE_DAILY","PERIOD"]
[336402506,1724809843141,-167.15330694,0.00011232,2]
[336402507,1724809843150,-500.0,0.00011232,2]
[336402508,1724809843161,-500.0,0.00011232,2]
[336402509,1724809843172,-784.09,0.00011232,2]
[336402510,1724809843181,-500.0,0.00011232,2]
[336402511,1724809843190,-500.0,0.00011232,2]
[336402512,1724809843201,-611.78909077,0.00011232,2]
[336402513,1724809843211,-500.0,0.00011232,2]
[336402514,1724809843225,-500.0,0.00011232,2]
[336402515,1724809843235,-500.0,0.00011232,2]
[336402516,1724809843244,-500.0,0.00011232,2]
[336402517,1724809843253,-2486.62,0.00011232,2]
[336402518,1724809843263,-305.65933527,0.00011232,2]
[336402519,1724809843272,-503.02615329,0.00011232,2]
[336402520,1724809843282,-500.0,0.00011232,2]
[336402521,1724809843291,-3252.89,0.00011232,2]
[336402522,1724809843300,-612.58425573,0.00011232,2]
[336402524,1724809843311,-884.23,0.00011232,2]
[336402526,1724809843320,-503.6087173,0.00011232,2]
[336402528,1724809843330,-3186.09,0.00011232,2]
[336402529,1724809843340,-440.03214273,0.00011232,2]
[336402531,1724809843350,-1414.92,0.00011232,2]
[336402532,1724809843360,-500.0,0.00011232,2]
[336402533,1724809843370,-500.0,0.00011232,2]
[336402534,1724809843379,-150.82,0.00011232,2]
[336402535,1724809843390,-500.0,0.00011232,2]
[336402536,1724809843400,-592.39,0.00011232,2]
[336402538,1724809843411,-500.0,0.00011232,2]
[336402539,1724809843421,-707.66,0.00011232,2]
[336402540,1724809843432,-1231.22,0.00011232,2]
[336402541,1724809843443,-12896.74,0.00011232,2]
[336402542,1724809843454,-516.84300056,0.00011232,2]
[336402543,1724809843463,-500.0,0.00011232,2]
[336402544,1724809843474,-2309.3,0.00011232,2]
[336402545,1724809843484,-500.0,0.00011232,2]
[336402546,1724809843493,-503.37308148,0.00011232,2]
[336402547,1724809843506,-500.0,0.00011232,2]
[336402548,1724809843519,-500.0,0.00011232,2]
[336402550,1724809843529,-2934.9,0.00011232,2]
[336402552,1724809843540,-490.33140881,0.00011232,2]
[336402554,1724809843550,-247.28,0.00011232,2]
[336402555,1724809843560,-500.0,0.00011232,2]
[336402556,1724809843570,-598.57322926,0.00011232,2]
[336402557,1724809843583,-154.4639244,0.00011232,2]
[336402558,1724809843592,-500.0,0.00011232,2]
[336402559,1724809843603,-500.0,0.00011232,2]
[336402560,1724809843614,-500.0,0.00011232,2]
[336402561,1724809843627,-502.84128518,0.00011232,2]
[336402562,1724809843638,-886.73,0.00011232,2]
[336402563,1724809843649,-500.0,0.00011232,2]
[336402564,1724809843661,-500.0,0.00011232,2]
[336402565,1724809843672,-511.68773225,0.00011232,2]
[336402566,1724809843684,-500.0,0.00011232,2]
[336402568,1724809843693,-503.57369598,0.00011232,2]
[336402569,1724809843704,-231.67091628,0.00011232,2]
[336402570,1724809843716,-161.82562955,0.00011232,2]
[336402571,1724809843727,-500.0,0.00011232,2]
[336402572,1724809843737,-515.54090194,0.00011232,2]
[336402573,1724809843749,-500.0,0.00011232,2]
[336402574,1724809843762,-500.0,0.00011232,2]
[336402575,1724809843771,-500.0,0.00011232,2]
[336402576,1724809843781,-500.0,0.00011232,2]
[336402577,1724809843791,-500.0,0.00011232,2]
[336402578,1724809843802,-500.0,0.00011232,2]
[336402579,1724809843813,-500.0,0.00011232,2]
[336402580,1724809843823,-692.22,0.00011232,2]
[336402581,1724809843833,-504.63453034,0.00011232,2]
[336402582,1724809843843,-500.0,0.00011232,2]
[336402583,1724809843853,-500.0,0.00011232,2]
[336402584,1724809843864,-500.0,0.00011232,2]
[336402585,1724809843877,-500.0,0.00011232,2]
[336402586,1724809843887,-637.06,0.00011232,2]
[336402587,1724809843897,-7039.88,0.00011232,2]
[336402588,1724809843907,-521.97437136,0.00011232,2]
[336402589,1724809843917,-521.91904038,0.00011232,2]
[336402590,1724809843927,-506.55275438,0.00011232,2]
[336402591,1724809843936,-597.90985453,0.00011232,2]
[336402592,1724809843947,-500.0,0.00011232,2]
[336402593,1724809843958,-2645.59,0.00011232,2]
[336402594,1724809843968,-504.60361023,0.00011232,2]
[336402595,1724809843977,-614.63758027,0.00011232,2]
[336402596,1724809843988,-502.62228021,0.00011232,2]
[336402597,1724809844137,-1109.51,0.00011232,2]
[336402598,1724809844147,-504.52053309,0.00011232,2]
[336402599,1724809844158,-2873.62,0.00011232,2]
[336402600,1724809844168,-504.93021782,0.00011232,2]
[336402601,1724809844178,-500.0,0.00011232,2]
[336402602,1724809844190,-3124.26,0.00011232,2]
[336402603,1724809844200,-500.0,0.00011232,2]
[336402604,1724809844209,-289.39881332,0.00011232,2]
[336402605,1724809844220,-517.97009696,0.00011232,2]
[336402606,1724809844230,-500.0,0.00011232,2]
[336402607,1724809844240,-500.0,0.00011232,2]
[336402608,1724809844249,-500.0,0.00011232,2]
[336402609,1724809844259,-500.0,0.00011232,2]
[336402610,1724809844269,-500.0,0.00011232,2]
[336402611,1724809844279,-500.0,0.00011232,2]
[336402612,1724809844289,-983.27,0.00011232,2]
[336402613,1724809844299,-500.0,0.00011232,2]
[336402614,1724809844308,-500.0,0.00011232,2]
[336402615,1724809844317,-2548.25,0.00011232,2]
[336402616,1724809844327,-4039.69,0.00011232,2]
[336402617,1724809844337,-189.98451,0.00011233,2]
[336402618,1724809844346,-2611.26711056,0.00011268,2]
[336402619,1724809844355,-160.08194338,0.00011273,2]
[336402620,1724809844365,-500.0,0.00011273,2]
[336402621,1724809844375,-207.46776336,0.00011406,2]
[336402622,1724809844384,-154.74467129,0.00011409,2]
[336402623,1724809844394,-562.16,0.00011505,2]
[336402624,1724809844404,-562.16,0.00011505,2]
[336402625,1724809844414,-562.16,0.00011505,2]
[336402626,1724809844424,-25952.71363915,0.00011506,5]
[336402627,1724809844434,-1676.38677652,0.00011506,2]
[336402628,1724809844444,-500.0,0.00011506,2]
[336402629,1724809844455,-635.83566282,0.00011506,2]
[336402630,1724809844466,-504.61355716,0.00011506,2]
[336402631,1724809844476,-500.0,0.00011506,2]
[336402632,1724809844486,-500.0,0.00011506,2]
[336402633,1724809844495,-500.0,0.00011506,2]
[336402634,1724809844504,-776.33,0.00011506,2]
[336402635,1724809844515,-500.0,0.00011506,2]
[336402636,1724809844527,-500.0,0.00011506,2]
[336402637,1724809844545,-500.0,0.00011506,2]
[336402638,1724809844558,-500.0,0.00011506,2]
[336402639,1724809844569,-377.39675297,0.00011506,2]
[336402640,1724809844582,-165.40345209,0.00011506,2]
[336402641,1724809844592,-238.59122016,0.00011506,2]
[336402642,1724809844603,-500.0,0.00011506,2]
[336402643,1724809844614,-597.4519145,0.00011506,2]
[336402644,1724809844626,-589.45398109,0.00011506,2]
[336402646,1724809844637,-500.0,0.00011506,2]
[336402648,1724809844648,-500.0,0.00011506,2]
[336402649,1724809844661,-500.0,0.00011506,2]
[336402650,1724809844673,-500.0,0.00011506,2]
[336402651,1724809844684,-500.0,0.00011506,2]
[336402652,1724809844694,-500.0,0.00011506,2]
[336402653,1724809844704,-645.66529747,0.00011506,2]
[336402654,1724809844714,-500.0,0.00011506,2]
[336402655,1724809844724,-379.82350217,0.00011506,2]
[336402656,1724809844734,-504.69562213,0.00011506,2]
[336402657,1724809844744,-500.0,0.00011506,2]
[336402658,1724809844755,-411.10631778,0.00011506,2]
[336402659,1724809844764,-784.09,0.00011506,2]
[336402660,1724809844775,-500.0,0.00011506,2]
[336402661,1724809844786,-500.0,0.00011506,2]
[336402662,1724809844795,-500.0,0.00011506,2]
[336402663,1724809844805,-500.0,0.00011506,2]
[336402664,1724809844815,-500.0,0.00011506,2]
[336402665,1724809844825,-500.0,0.00011506,2]
[336402666,1724809844835,-2486.62,0.00011506,2]
[336402667,1724809844844,-174.62546121,0.00011506,2]
[336402668,1724809844855,-3252.89,0.00011506,2]
[336402669,1724809844865,-884.23,0.00011506,2]
[336402670,1724809844875,-3186.09,0.00011506,2]
[336402671,1724809844886,-1414.92,0.00011506,2]
[336402672,1724809844896,-500.0,0.00011506,2]
[336402673,1724809844906,-500.0,0.00011506,2]
[336402674,1724809844916,-592.39,0.00011506,2]
[336402675,1724809844926,-500.0,0.00011506,2]
[336402676,1724809844936,-707.66,0.00011506,2]
[336402677,1724809844946,-1231.22,0.00011506,2]
[336402678,1724809844955,-12896.74,0.00011506,2]
[336402679,1724809844965,-500.0,0.00011506,2]
[336402680,1724809844982,-2309.3,0.00011506,2]
[336402681,1724809844993,-546.65902595,0.00011506,2]
[336402682,1724809845002,-563.44101664,0.00011506,2]
[336402683,1724809845013,-500.0,0.00011506,2]
[336402684,1724809845023,-2934.9,0.00011506,2]
[336402685,1724809845033,-500.0,0.00011506,2]
[336402686,1724809845043,-500.0,0.00011506,2]
[336402687,1724809845053,-500.0,0.00011506,2]
[336402688,1724809845062,-500.0,0.00011506,2]
[336402689,1724809845071,-886.73,0.00011506,2]
[336402690,1724809845081,-340.52997667,0.00011506,2]
[336402691,1724809845091,-500.0,0.00011506,2]
[336402692,1724809845100,-507.34314059,0.00011506,2]
[336402693,1724809845110,-515.2877149,0.00011506,2]
[336402694,1724809845120,-179.3352073,0.00011506,2]
[336402695,1724809845129,-504.26473185,0.00011506,2]
[336402696,1724809845139,-197.90139116,0.00011506,2]
[336402697,1724809845148,-500.0,0.00011506,2]
[336402698,1724809845158,-629.1343867,0.00011506,2]
[336402699,1724809845172,-187.85181661,0.00011506,2]
[336402700,1724809845182,-500.0,0.00011506,2]
[336402701,1724809845192,-692.22,0.00011506,2]
[336402702,1724809845202,-500.0,0.00011506,2]
[336402703,1724809845212,-500.0,0.00011506,2]
[336402704,1724809845225,-500.0,0.00011506,2]
[336402705,1724809845234,-500.0,0.00011506,2]
[336402706,1724809845244,-637.06,0.00011506,2]
[336402707,1724809845254,-7039.88,0.00011506,2]
[336402708,1724809845264,-523.45557851,0.00011506,2]
[336402709,1724809845274,-2645.59,0.00011506,2]
[336402710,1724809845284,-1109.51,0.00011506,2]
[336402711,1724809845294,-2873.62,0.00011506,2]
[336402712,1724809845304,-500.0,0.00011506,2]
[336402713,1724809845314,-3124.26,0.00011506,2]
[336402714,1724809845324,-500.0,0.00011506,2]
[336402715,1724809845334,-503.64152287,0.00011506,2]
[336402716,1724809845344,-504.81364103,0.00011506,2]
[336402717,1724809845354,-505.03683572,0.00011506,2]
[336402718,1724809845364,-500.0,0.00011506,2]
[336402719,1724809845374,-374.8806259,0.00011506,2]
[336402720,1724809845385,-601.91923334,0.00011506,2]
[336402721,1724809845396,-983.27,0.00011506,2]
[336402722,1724809845406,-500.0,0.00011506,2]
[336402723,1724809845417,-500.0,0.00011506,2]
[336402724,1724809845427,-2548.25,0.00011506,2]
[336402725,1724809845438,-189.98451,0.00011507,2]
[336402726,1724809845448,-1000.0,0.00011521,2]
[336402727,1724809845459,-4341.18797667,0.00011587,2]
[336402728,1724809845473,-666.07600313,0.00011621,2]
[336402729,1724809845483,-8852.09163784,0.00011683,2]
[336402730,1724809845495,-301.82720385,0.00011683,2]
[336402731,1724809845505,-154.74467129,0.00011731,2]
[336402732,1724809845516,-154.69833824,0.00011731,2]
[336402733,1724809845527,-562.16,0.00011779,2]
[336402734,1724809845537,-500.0,0.0001178,2]
[336402735,1724809845547,-500.0,0.0001178,2]
[336402736,1724809845557,-500.0,0.0001178,2]
[336402737,1724809845567,-500.0,0.0001178,2]
[336402738,1724809845578,-776.33,0.0001178,2]
[336402739,1724809845590,-198.94670703,0.0001178,2]
[336402740,1724809845601,-152.9446953,0.0001178,2]
[336402741,1724809845611,-242.96661772,0.0001178,2]
[336402742,1724809845621,-505.7664383,0.0001178,2]
[336402743,1724809845631,-190.59094043,0.0001178,2]
[336402744,1724809845641,-508.25935746,0.0001178,2]
[336402745,1724809845651,-341.32125659,0.0001178,2]
[336402746,1724809845661,-472.77796279,0.0001178,2]
[336402747,1724809845672,-517.06307065,0.0001178,2]
[336402748,1724809845681,-202.29121526,0.0001178,2]
[336402749,1724809845691,-500.0,0.0001178,2]
[336402750,1724809845700,-500.0,0.0001178,2]
[336402751,1724809845710,-500.0,0.0001178,2]
[336402752,1724809845723,-784.09,0.0001178,2]
[336402753,1724809845734,-493.08299564,0.0001178,2]
[336402754,1724809845743,-506.04010127,0.0001178,2]
[336402755,1724809845752,-500.0,0.0001178,2]
[336402756,1724809845762,-500.0,0.0001178,2]
[336402757,1724809845772,-500.0,0.0001178,2]
[336402758,1724809845781,-268.62219005,0.0001178,2]
[336402759,1724809845791,-2486.62,0.0001178,2]
[336402760,1724809845806,-3252.89,0.0001178,2]
[336402761,1724809845816,-884.23,0.0001178,2]
[336402762,1724809845827,-3186.09,0.0001178,2]
[336402763,1724809845836,-1414.92,0.0001178,2]
[336402764,1724809845846,-504.2004185,0.0001178,2]
[336402765,1724809845857,-269.78992962,0.0001178,2]
[336402766,1724809845867,-592.39,0.0001178,2]
[336402767,1724809845876,-500.0,0.0001178,2]
[336402768,1724809845886,-707.66,0.0001178,2]
[336402769,1724809845897,-1231.22,0.0001178,2]
[336402770,1724809845907,-12896.74,0.0001178,2]
[336402771,1724809845917,-500.0,0.0001178,2]
[336402772,1724809845927,-2309.3,0.0001178,2]
[336402773,1724809845937,-500.0,0.0001178,2]
[336402774,1724809845947,-2934.9,0.0001178,2]
[336402775,1724809845956,-500.0,0.0001178,2]
[336402776,1724809845966,-505.79715078,0.0001178,2]
[336402777,1724809845982,-505.13940324,0.0001178,2]
[336402778,1724809845992,-514.68355027,0.0001178,2]
[336402779,1724809846002,-886.73,0.0001178,2]
[336402780,1724809846013,-600.09958272,0.0001178,2]
[336402781,1724809846023,-429.92912281,0.0001178,2]
[336402782,1724809846034,-500.0,0.0001178,2]
[336402783,1724809846044,-692.22,0.0001178,2]
[336402784,1724809846054,-500.0,0.0001178,2]
[336402785,1724809846064,-424.32862694,0.0001178,2]
[336402786,1724809846074,-500.0,0.0001178,2]
[336402787,1724809846084,-500.0,0.0001178,2]
[336402788,1724809846094,-637.06,0.0001178,2]
[336402789,1724809846105,-7039.88,0.0001178,2]
[336402790,1724809846115,-2645.59,0.0001178,2]
[336402791,1724809846124,-1109.51,0.0001178,2]
[336402792,1724809846134,-2873.62,0.0001178,2]
[336402793,1724809846144,-500.0,0.0001178,2]
[336402794,1724809846154,-3124.26,0.0001178,2]
[336402795,1724809846164,-574.49928284,0.0001178,2]
[336402796,1724809846174,-500.0,0.0001178,2]
[336402797,1724809846185,-983.27,0.0001178,2]
[336402798,1724809846196,-500.0,0.0001178,2]
[336402799,1724809846208,-500.0,0.0001178,2]
[336402800,1724809846222,-2548.25,0.0001178,2]
[336402801,1724809846233,-562.16,0.00011791,2]
[336402802,1724809846242,-1000.0,0.00011821,2]
[336402803,1724809846252,-562.16,0.00011841,2]
[336402804,1724809846262,-312.14192819,0.00011873,2]
[336402805,1724809846272,-500.0,0.00011873,2]
[336402806,1724809846282,-500.0,0.00011873,2]
[336402808,1724809846292,-1950.33972775,0.00011887,2]
[336402809,1724809846302,-562.16,0.00011898,2]
[336402811,1724809846312,-562.16,0.00011899,2]
[336402813,1724809846322,-562.16,0.00011899,2]
[336402815,1724809846332,-562.16,0.00011899,2]
[336402817,1724809846342,-562.16,0.00011899,2]
[336402819,1724809846353,-562.16,0.00011899,2]
[336402821,1724809846362,-562.16,0.00011899,2]
[336402823,1724809846372,-562.16,0.00011899,2]
[336402825,1724809846382,-562.16,0.00011899,2]
[336402827,1724809846391,-562.34149673,0.00011899,2]
[336402829,1724809846401,-261912.90198835,0.000119,2]
[336402851,1724809846671,-562.10617267,0.000119,2]
[336402852,1724809846684,-2825.69262421,0.000119,2]
[336402853,1724809846714,-4039.69,0.00011506,2]
[336402854,1724809846724,-3220.30999997,0.000119,2]
[336402855,1724809846977,-223.73028006,0.00010081,2]
[336402856,1724809846990,-175.2444788,0.00010739,2]
[336402857,1724809847000,-500.0,0.00010958,2]
[336402858,1724809847010,-501.70695037,0.00011232,2]
[336402859,1724809847020,-180.95755433,0.00011409,2]
[336402860,1724809847029,-4039.69,0.0001178,2]
[336402861,1724809847039,-184038.95525639,0.000119,2]
[336402862,1724809847054,-778.77816216,0.000119,2]
[336402863,1724809847225,-154.69833824,0.00010739,2]
[336402864,1724809847235,-500.0,0.00010958,2]
[336402865,1724809847244,-500.0,0.00011232,2]
[336402866,1724809847254,-6198.83859204,0.000119,2]
[336402867,1724809848026,-610.60590462,0.00010958,2]
[336402868,1724809848036,-138881.64135846,0.000119,2]
[336402876,1724810481521,1500.30883048,0.00011506,10]
[336402882,1724810778740,809.4,0.00023,60]
[336402885,1724810826141,-178.41186059,8.681e-05,2]
[336402886,1724810826164,-154.62117811,8.761e-05,2]
[336402887,1724810826185,-521.86780136,8.793e-05,2]
[336402888,1724810826208,-154.62117811,8.883e-05,2]
[336402889,1724810826230,-300.0,9.078e-05,2]
[336402890,1724810826253,-300.0,9.078e-05,2]
[336402891,1724810826279,-8153.23605988,9.079e-05,2]
[336402892,1724810828106,-16746.76394012,9.079e-05,2]
[336402893,1724810828128,-1298.9683616,9.089e-05,2]
[336402894,1724810828149,-301.82720385,9.429e-05,2]
[336402895,1724810828172,-250.0,9.701e-05,2]
[336402896,1724810828195,-250.0,9.727e-05,2]
[336402897,1724810828220,-250.0,9.754e-05,2]
[336402898,1724810828244,-250.0,9.78e-05,2]
[336402899,1724810828270,-902.890498,9.8e-05,2]
[336402900,1724810828530,-250.0,9.807e-05,2]
[336402901,1724810828554,-250.0,9.834e-05,2]
[336402902,1724810828576,-250.0,9.86e-05,2]
[336402903,1724810828598,-250.0,9.887e-05,2]
[336402904,1724810828620,-250.0,9.913e-05,2]
[336402905,1724810828641,-1768.0013112,9.939e-05,2]
[336402906,1724810828662,-250.0,9.94e-05,2]
[336402907,1724810828683,-250.0,9.967e-05,2]
[336402908,1724810828703,-420.0,9.986e-05,2]
[336402909,1724810828725,-250.0,9.993e-05,2]
[336402910,1724810828745,-288.55434071,0.0001,2]
[336402911,1724810828768,-250.0,0.0001002,2]
[336402912,1724810828790,-250.0,0.00010046,2]
[336402913,1724810828814,-250.0,0.00010073,2]
[336402914,1724810828835,-7985.02986348,0.00010081,2]
[336402915,1724810828857,-250.0,0.000101,2]
[336402916,1724810828880,-250.0,0.00010126,2]
[336402917,1724810828901,-250.0,0.00010153,2]
[336402918,1724810828924,-250.0,0.00010179,2]
[336402919,1724810828946,-250.0,0.00010206,2]
[336402920,1724810828968,-2999.17623735,0.0001026,2]
[336402921,1724810828989,-206.0776433,0.00010544,2]
[336402922,1724810829010,-207.46776336,0.00010858,2]
[336402923,1724810829032,-500.0,0.00010958,2]
[336402924,1724810829055,-592.92048329,0.00010958,2]
[336402925,1724810829076,-500.0,0.00010958,2]
[336402926,1724810829103,-346.9190094,0.00010958,2]
[336402927,1724810829126,-503.48584972,0.00010958,2]
[336402928,1724810829148,-500.0,0.00010958,2]
[336402929,1724810829168,-500.0,0.00010958,2]
[336402930,1724810829190,-500.0,0.00010958,2]
[336402931,1724810829210,-501.37098133,0.00010958,2]
[336402932,1724810829231,-504.90442376,0.00010958,2]
[336402933,1724810829254,-500.0,0.00010958,2]
[336402934,1724810829280,-500.0,0.00010958,2]
[336402935,1724810829301,-500.0,0.00010958,2]
[336402936,1724810829323,-501.12652394,0.00010958,2]
[336402937,1724810829344,-500.0,0.00010958,2]
[336402938,1724810829366,-500.0,0.00010958,2]
[336402939,1724810829386,-502.29348871,0.00010958,2]
[336402940,1724810829407,-500.0,0.00010958,2]
[336402941,1724810829428,-500.0,0.00010958,2]
[336402942,1724810829448,-500.0,0.00010958,2]
[336402943,1724810829468,-506.57004036,0.00010958,2]
[336402944,1724810829488,-500.0,0.00010958,2]
[336402945,1724810829511,-500.0,0.00010958,2]
[336402946,1724810829531,-500.0,0.00010958,2]
[336402947,1724810829551,-500.0,0.00010958,2]
[336402948,1724810829574,-501.5496225,0.00010958,2]
[336402949,1724810829594,-500.0,0.00010958,2]
[336402950,1724810829619,-500.0,0.00010958,2]
[336402951,1724810829639,-500.0,0.00010958,2]
[336402952,1724810829661,-500.17045056,0.00010958,2]
[336402953,1724810829683,-500.8009626,0.00010958,2]
[336402954,1724810829704,-500.0,0.00010958,2]
[336402955,1724810829724,-433.16209298,0.00010958,2]
[336402956,1724810829744,-505.84970763,0.00010958,2]
[336402957,1724810829766,-678.18,0.00010958,2]
[336402958,1724810829786,-500.0,0.00010958,2]
[336402959,1724810829806,-500.0,0.00010958,2]
[336402960,1724810829827,-500.0,0.00010958,2]
[336402961,1724810829848,-501.60558522,0.00010958,2]
[336402962,1724810829869,-490.33140881,0.00010958,2]
[336402963,1724810829896,-502.4499899,0.00010958,2]
[336402964,1724810829921,-500.0,0.00010958,2]
[336402965,1724810829947,-500.0,0.00010958,2]
[336402966,1724810829970,-500.0,0.00010958,2]
[336402967,1724810829994,-500.0,0.00010958,2]
[336402968,1724810830018,-500.61892161,0.00010958,2]
[336402969,1724810830040,-500.0,0.00010958,2]
[336402970,1724810830063,-500.0,0.00010958,2]
[336402971,1724810830087,-500.0,0.00010958,2]
[336402972,1724810830109,-500.0,0.00010958,2]
[336402973,1724810830134,-500.0,0.00010958,2]
[336402974,1724810830157,-500.0,0.00010958,2]
[336402975,1724810830178,-500.0,0.00010958,2]
[336402976,1724810830203,-502.20564367,0.00010958,2]
[336402977,1724810830224,-500.94905701,0.00010958,2]
[336402978,1724810830245,-598.57322926,0.00010958,2]
[336402979,1724810830273,-231.67091628,0.00010958,2]
[336402980,1724810830296,-500.0,0.00010958,2]
[336402981,1724810830318,-500.0,0.00010958,2]
[336402982,1724810830340,-501.36383161,0.00010958,2]
[336402983,1724810830365,-500.0,0.00010958,2]
[336402984,1724810830387,-504.22771852,0.00010958,2]
[336402985,1724810830408,-500.0,0.00010958,2]
[336402986,1724810830431,-502.84128518,0.00010958,2]
[336402987,1724810830455,-501.8559628,0.00010958,2]
[336402988,1724810830477,-500.83879302,0.00010958,2]
[336402989,1724810830498,-546.01767118,0.00010958,2]
[336402990,1724810830520,-503.03535028,0.00010958,2]
[336402991,1724810830542,-500.0,0.00010958,2]
[336402992,1724810830564,-501.62048935,0.00010958,2]
[336402993,1724810830586,-500.0,0.00010958,2]
[336402994,1724810830608,-500.0,0.00010958,2]
[336402995,1724810830632,-500.0,0.00010958,2]
[336402996,1724810830656,-501.84843234,0.00010958,2]
[336402997,1724810830677,-503.64410804,0.00010958,2]
[336402998,1724810830699,-501.38432686,0.00010958,2]
[336402999,1724810830723,-500.0,0.00010958,2]
[336403000,1724810830745,-500.0,0.00010958,2]
[336403001,1724810830768,-500.0,0.00010958,2]
[336403002,1724810830789,-500.0,0.00010958,2]
[336403003,1724810830811,-500.0,0.00010958,2]
[336403004,1724810830832,-500.0,0.00010958,2]
[336403005,1724810830854,-500.0,0.00010958,2]
[336403006,1724810830879,-505.60376694,0.00010958,2]
[336403007,1724810830902,-500.0,0.00010958,2]
[336403008,1724810830925,-500.0,0.00010958,2]
[336403009,1724810830949,-500.0,0.00010958,2]
[336403010,1724810830972,-500.0,0.00010958,2]
[336403011,1724810830995,-500.0,0.00010958,2]
[336403012,1724810831019,-568.3449334,0.00010958,2]
[336403013,1724810831040,-511.52817849,0.00010958,2]
[336403014,1724810831063,-189.84332464,0.00010958,2]
[336403015,1724810831084,-496.12241181,0.00010958,2]
[336403016,1724810831107,-500.0,0.00010958,2]
[336403017,1724810831129,-500.0,0.00010958,2]
[336403018,1724810831151,-500.0,0.00010958,2]
[336403019,1724810831173,-500.0,0.00010958,2]
[336403020,1724810831200,-500.0,0.00010958,2]
[336403021,1724810831223,-500.0,0.00010958,2]
[336403022,1724810831244,-500.0,0.00010958,2]
[336403023,1724810831268,-502.97199033,0.00010958,2]
[336403024,1724810831291,-500.0,0.00010958,2]
[336403025,1724810831312,-500.0,0.00010958,2]
[336403026,1724810831334,-500.0,0.00010958,2]
[336403027,1724810831359,-500.0,0.00010958,2]
[336403028,1724810831385,-527.32211411,0.00010958,2]
[336403029,1724810831411,-500.95745708,0.00010958,2]
[336403030,1724810831434,-983.27,0.00010958,2]
[336403031,1724810831458,-500.0,0.00010958,2]
[336403032,1724810831480,-500.0,0.00010958,2]
[336403033,1724810831506,-555.76046044,0.00010958,2]
[336403034,1724810831528,-500.0,0.00010958,2]
[336403035,1724810831551,-500.0,0.00010958,2]
[336403036,1724810831572,-500.0,0.00010958,2]
[336403037,1724810831596,-500.0,0.00010958,2]
[336403038,1724810831617,-501.36563003,0.00010958,2]
[336403039,1724810831638,-500.0,0.00010958,2]
[336403040,1724810831660,-500.0,0.00010958,2]
[336403041,1724810831684,-350.32153167,0.00010958,2]
[336403042,1724810831706,-500.0,0.00010958,2]
[336403043,1724810831729,-500.0,0.00010958,2]
[336403044,1724810831751,-503.29239358,0.00010958,2]
[336403045,1724810831773,-504.40078535,0.00010958,2]
[336403046,1724810831794,-503.72413008,0.00010958,2]
[336403047,1724810831818,-500.0,0.00010958,2]
[336403048,1724810831841,-500.0,0.00010958,2]
[336403049,1724810831862,-870.81,0.00010958,2]
[336403050,1724810831888,-500.0,0.00010958,2]
[336403051,1724810831911,-500.0,0.00010958,2]
[336403052,1724810831933,-500.0,0.00010958,2]
[336403053,1724810831955,-500.0,0.00010958,2]
[336403054,1724810831977,-618.29,0.00010958,2]
[336403055,1724810831998,-504.45360559,0.00010958,2]
[336403056,1724810832023,-501.16252258,0.00010958,2]
[336403057,1724810832047,-500.0,0.00010958,2]
[336403058,1724810832069,-502.36925446,0.00010958,2]
[336403059,1724810832091,-500.0,0.00010958,2]
[336403060,1724810832114,-500.0,0.00010958,2]
[336403061,1724810832136,-500.0,0.00010958,2]
[336403062,1724810832157,-501.54817359,0.00010958,2]